bitfinex/quotes_ETHUSD_20250603
["timestamp","ask_amount","ask_price","bid_price","bid_amount"]
[1748958489395,3.80597658,2627.5,2626.5,8.54092956]
[1748958489728,0.7607,2627.6,2626.6,8.0]
[1748958489889,3.80642321,2627.2,2626.6,8.0]
[1748958490225,0.7607,2627.6,2626.2,0.9072]
[1748958490387,3.80630832,2627.3,2626.4,3.80749314]
[1748958490587,3.80665817,2627.0,2626.5,0.35770483]
[1748958490925,4.57754213,2626.9,2626.1,17.98637575]
[1748958491147,3.80745319,2626.5,2626.2,0.35784872]
[1748958491442,0.7707,2626.9,2626.2,8.54092956]
[1748958491741,0.7707,2627.3,2626.3,12.16558441]
[1748958491973,0.7707,2627.8,2627.0,3.80651642]
[1748958492110,0.7707,2627.8,2627.2,3.806242]
[1748958492303,5.03583011,2627.8,2627.2,3.806242]
[1748958492503,5.03583011,2627.8,2627.1,3.80642909]
[1748958492504,5.03579544,2627.8,2627.1,3.80642909]
[1748958493048,1.23029068,2627.8,2626.9,8.0]
[1748958493348,3.80568428,2627.7,2627.0,3.80652853]
[1748958493527,3.80568428,2627.7,2627.1,3.80647277]
[1748958493729,0.7707,2627.8,2627.3,3.80612053]
[1748958493942,0.7707,2627.8,2627.4,3.80597253]
[1748958494118,0.7707,2627.8,2627.1,11.80642775]
[1748958494322,0.7707,2627.8,2627.1,8.0]
[1748958494732,0.02,2627.9,2627.2,0.3574906]
[1748958495046,0.02,2627.9,2627.8,3.80546464]
[1748958495231,0.02,2627.9,2627.6,3.80567209]
[1748958495411,0.02,2627.9,2627.5,3.80582401]
[1748958495607,0.02,2627.9,2627.8,3.80546464]
[1748958495847,0.02,2627.9,2627.8,30.16550262]
[1748958496053,0.02,2627.9,2627.8,30.52269656]
[1748958496434,0.02,2627.9,2627.8,12.923767]
[1748958496627,0.02,2627.9,2627.8,21.986767]
[1748958496855,0.02,2627.9,2627.8,21.98654347]
[1748958497055,0.02,2627.9,2627.8,30.52547303]
[1748958497274,0.02,2627.9,2627.8,12.92354347]
[1748958497550,0.02,2627.9,2627.8,22.00754347]
[1748958497916,0.02,2627.9,2627.8,13.30446723]
[1748958498119,0.02,2627.9,2627.8,21.62535881]
[1748958498367,0.02,2627.9,2627.8,22.17535881]
[1748958499083,0.02,2627.9,2627.8,12.54335881]
[1748958499281,0.02,2627.9,2627.8,21.62535881]
[1748958500783,0.02,2627.9,2627.8,12.54335971]
[1748958500960,0.02,2627.9,2627.8,12.16243595]
[1748958501160,0.02,2627.9,2627.8,21.23143595]
[1748958501362,0.02,2627.9,2627.8,12.16243595]
[1748958501897,0.02,2627.9,2627.1,3.53802008]
[1748958502053,3.82541563,2627.9,2627.2,0.35751413]
[1748958502385,4.60581215,2627.7,2626.9,3.80671204]
[1748958502558,0.7883,2627.6,2626.3,0.59617472]
[1748958502764,4.594783,2627.1,2626.4,4.1657483]
[1748958502967,3.80664002,2627.0,2626.5,0.35833068]
[1748958503169,3.80692557,2626.8,2626.1,3.80788761]
[1748958503406,0.7883,2627.1,2626.2,0.35849412]
[1748958503703,0.7883,2627.1,2626.3,0.35849412]
[1748958503906,3.80678342,2626.9,2626.3,3.80754866]
[1748958504245,3.80695788,2626.8,2626.1,3.80785267]
[1748958504572,3.80695788,2626.8,2625.7,7.57717472]
[1748958504573,0.7718,2626.8,2626.2,0.3592372]
[1748958504886,0.7718,2626.8,2625.9,8.0]
[1748958505087,0.7718,2626.8,2626.5,3.80726599]
[1748958505257,0.7718,2626.8,2626.0,8.0]
[1748958505457,0.7718,2626.8,2626.2,11.80768184]
[1748958505687,0.7718,2626.8,2626.3,4.16666956]
[1748958505874,0.7718,2626.8,2626.4,4.1665654]
[1748958506047,0.7718,2626.8,2626.5,0.35941642]
[1748958506249,0.7718,2626.8,2626.5,3.8072407]
[1748958506451,0.8279,2627.1,2626.6,0.35968167]
[1748958506784,0.8279,2627.1,2626.7,0.35968167]
[1748958506987,0.8279,2627.1,2626.3,6.71451136]
[1748958507193,0.8279,2627.1,2626.6,3.80707782]
[1748958507395,0.8279,2627.1,2626.7,4.1666517]
[1748958507685,0.8279,2627.1,2626.3,7.82636146]
[1748958507988,0.8279,2627.1,2626.5,3.80734818]
[1748958508187,0.8219,2627.7,2626.6,0.35962016]
[1748958508389,3.80582544,2627.6,2627.0,3.80661586]
[1748958508686,3.80582544,2627.6,2626.7,3.80696671]
[1748958508687,3.8057543,2627.6,2626.7,3.80696671]
[1748958508886,3.80601963,2627.5,2626.8,4.16640265]
[1748958509096,0.76117739,2627.4,2626.9,0.35953353]
[1748958509388,3.80641779,2627.2,2626.4,8.0]
[1748958509684,0.8217,2627.3,2626.7,3.80703743]
[1748958509891,0.8217,2627.3,2626.8,0.35956113]
[1748958510047,0.8217,2627.3,2626.6,8.0]
[1748958510248,0.8217,2627.3,2626.9,3.80666715]
[1748958510460,0.8217,2627.3,2626.5,8.0]
[1748958510660,0.8217,2627.3,2626.6,0.35956985]
[1748958510864,0.8217,2627.3,2626.6,8.54092956]
[1748958511060,0.8217,2627.3,2626.7,12.16667289]
[1748958511273,0.8217,2627.3,2627.1,3.80633981]
[1748958511478,0.8217,2627.3,2627.2,3.80633373]
[1748958511846,0.8217,2627.3,2626.8,2.07076024]
[1748958512054,0.8217,2627.3,2626.9,0.35950685]
[1748958512263,0.8217,2627.3,2627.0,0.35950685]
[1748958512569,0.8217,2627.3,2626.9,3.80672971]
[1748958512764,0.8217,2627.3,2627.0,0.35954837]
[1748958512969,0.46277933,2627.2,2626.6,3.80711361]
[1748958513291,4.62789557,2627.3,2626.7,4.16660653]
[1748958513500,0.8217,2627.3,2626.8,4.16648545]
[1748958513794,0.8217,2627.3,2626.8,3.80685758]
[1748958513998,0.8217,2627.3,2626.4,3.80736471]
[1748958513999,3.80658903,2627.1,2626.4,3.80736471]
[1748958514196,0.84346228,2627.1,2626.5,0.35970091]
[1748958514358,4.62795343,2627.3,2626.6,0.35970091]
[1748958514699,4.62795343,2627.3,2626.6,4.16684678]
[1748958514856,4.62795343,2627.3,2626.5,3.80724837]
[1748958514857,1.3119,2627.2,2626.2,2.083]
[1748958515062,5.11830253,2627.2,2626.5,3.8072215]
[1748958515396,0.7619,2627.2,2626.7,3.80702984]
[1748958515597,0.7619,2627.2,2626.3,3.80763137]
[1748958516196,0.7619,2627.2,2626.6,3.80708409]
[1748958516400,0.7619,2627.2,2626.7,0.35954321]
[1748958516563,0.8045,2627.0,2626.4,3.80735377]
[1748958516761,0.8045,2627.0,2626.5,4.16691511]
[1748958516999,0.8045,2627.0,2626.6,3.80708193]
[1748958517199,0.8045,2627.0,2626.7,3.80701572]
[1748958517439,0.8045,2627.0,2626.7,3.80693167]
[1748958517655,0.8045,2627.0,2626.8,3.80688995]
[1748958517815,0.8045,2627.0,2626.7,3.80699198]
[1748958518210,0.8045,2627.0,2626.7,3.80695781]
[1748958518434,0.8045,2627.0,2626.3,8.0]
[1748958518653,0.8045,2627.0,2626.4,0.35939736]
[1748958518850,0.8045,2627.0,2626.5,0.35939736]
[1748958519008,3.80683166,2626.9,2626.3,3.80755621]
[1748958519361,3.80683166,2626.9,2626.4,0.35950491]
[1748958519510,0.8045,2627.0,2626.2,8.0]
[1748958519862,0.8045,2627.0,2626.3,4.16710081]
[1748958520022,1.32058487,2627.0,2626.4,4.16696467]
[1748958520210,0.8045,2627.0,2626.5,0.35943682]
[1748958520509,3.80678943,2626.9,2626.3,3.8075515]
[1748958520712,0.8045,2627.0,2626.4,0.35943218]
[1748958520916,4.61125626,2627.0,2626.3,3.8075515]
[1748958521155,0.8045,2627.0,2626.4,0.35942406]
[1748958521388,0.8045,2627.0,2626.2,8.0]
[1748958521648,0.8045,2627.0,2626.6,3.80707538]
[1748958521811,0.8045,2627.0,2626.7,3.80705635]
[1748958522006,0.8045,2627.0,2626.4,3.80747555]
[1748958522206,0.8045,2627.0,2626.5,4.16654043]
[1748958522432,0.8045,2627.0,2626.7,3.80703709]
[1748958522751,0.8045,2627.0,2626.4,3.80742231]
[1748958523059,0.8045,2627.0,2626.6,3.80720322]
[1748958523354,0.8045,2627.0,2626.6,3.80712811]
[1748958523911,0.8045,2627.0,2626.5,3.80733681]
[1748958524143,0.8045,2627.0,2626.6,4.16637678]
[1748958524448,0.8045,2627.0,2626.4,3.80743493]
[1748958524449,4.61114349,2627.0,2626.4,3.80743493]
[1748958524624,1.64625035,2627.0,2626.5,0.35937648]
[1748958524951,1.64625035,2627.0,2626.2,2.044]
[1748958525148,1.64625035,2627.0,2626.4,3.80749314]
[1748958525313,0.8045,2627.0,2626.5,3.80725869]
[1748958525723,0.8045,2627.0,2626.6,3.80719811]
[1748958526043,0.8045,2627.0,2626.2,10.58492956]
[1748958526221,0.8045,2627.0,2626.7,3.80698308]
[1748958526838,18.70386273,2627.6,2626.6,3.80710822]
[1748958526839,0.79,2627.6,2626.6,3.80710822]
[1748958527018,4.59576427,2627.6,2626.8,3.80683188]
[1748958527206,0.79,2627.6,2626.8,3.80685789]
[1748958527636,4.59583836,2627.6,2626.8,3.80685789]
[1748958528009,0.79,2627.6,2627.0,3.80660394]
[1748958528260,0.55,2627.5,2626.7,3.80698136]
[1748958528443,0.55,2627.5,2626.2,8.59617472]
[1748958528444,0.51457659,2627.4,2626.9,3.80674279]
[1748958528843,0.51457659,2627.4,2626.8,3.80684956]
[1748958529158,4.32063304,2627.4,2626.5,2.044]
[1748958529465,0.7792,2627.2,2626.6,0.36008837]
[1748958529620,4.58563682,2627.2,2626.7,0.36008837]
[1748958529825,0.83918598,2627.1,2626.6,3.80717486]
[1748958530025,0.83918598,2627.1,2626.7,0.36047295]
[1748958530363,0.83918598,2627.1,2626.1,19.2840847]
[1748958530364,0.83918598,2627.1,2626.4,3.80737474]
[1748958530533,0.83918598,2627.1,2626.5,0.36101204]
[1748958530856,4.64566894,2627.1,2626.6,0.36101204]
[1748958531067,0.54248689,2627.0,2626.6,4.16817756]
[1748958531383,0.54248689,2627.0,2626.7,4.16799098]
[1748958531520,0.83918598,2627.1,2626.8,4.16794897]
[1748958531720,0.7792,2627.2,2626.9,0.36104741]
[1748958532259,0.7792,2627.2,2626.5,3.80728746]
[1748958532458,0.7792,2627.2,2626.6,0.3615194]
[1748958532622,0.7792,2627.2,2626.7,0.3615194]
[1748958532826,4.58559676,2627.2,2626.8,0.3615194]
[1748958533137,0.45855968,2627.1,2626.9,0.3615194]
[1748958533348,0.7792,2627.2,2627.0,0.3615194]
[1748958533662,0.7792,2627.2,2627.1,0.3615194]
[1748958535122,0.8213,2627.5,2626.9,3.80676843]
[1748958535322,8.7213,2627.8,2627.1,8.54092956]
[1748958535524,8.7213,2627.8,2627.4,3.80597992]
[1748958535767,8.7213,2627.8,2627.5,0.36150908]
[1748958536069,0.8115,2628.1,2627.6,0.36150908]
[1748958536269,0.8115,2628.1,2627.7,0.36150908]
[1748958536471,0.8115,2628.1,2627.8,0.36150908]
[1748958536775,0.8331,2628.5,2627.8,4.16697372]
[1748958536936,0.8331,2628.5,2627.8,4.96422243]
[1748958538290,0.8331,2628.5,2627.8,12.96422243]
[1748958538872,0.8331,2628.5,2627.8,12.16697372]
[1748958539070,3.80490609,2628.2,2627.8,0.36014045]
[1748958539376,4.63761873,2628.5,2627.8,4.16560509]
[1748958539672,0.8331,2628.5,2627.8,0.36014045]
[1748958539892,0.8331,2628.5,2627.4,2.044]
[1748958540066,3.80478343,2628.3,2627.7,3.8056033]
[1748958540251,4.63764903,2628.5,2627.4,2.044]
[1748958540252,3.80491425,2628.2,2627.6,3.80569636]
[1748958540637,3.80489241,2628.2,2627.6,3.80564414]
[1748958540837,3.80504792,2628.1,2627.2,9.13710428]
[1748958541037,3.8049176,2628.2,2627.6,3.80575146]
[1748958541444,3.80496629,2628.2,2627.5,3.80582022]
[1748958541777,3.80479297,2628.3,2627.5,3.80577116]
[1748958541971,3.80492581,2628.2,2627.4,3.80604161]
[1748958542173,0.55,2628.4,2627.6,3.8056219]
[1748958542397,10.62966192,2628.4,2627.4,9.12593372]
[1748958542688,3.80503253,2628.1,2627.5,3.80584231]
[1748958542988,0.7981,2627.8,2627.1,2.044]
[1748958543191,16.44092956,2629.2,2627.7,3.80560946]
[1748958543355,0.8282,2628.2,2627.2,8.0]
[1748958543683,4.63316975,2628.2,2627.6,3.80571837]
[1748958543989,0.8282,2628.2,2627.3,9.98558383]
[1748958544290,0.8282,2628.2,2627.8,3.80546464]
[1748958544652,0.8282,2628.5,2627.8,3.80546464]
[1748958545157,0.02,2628.9,2627.8,21.79956799]
[1748958545355,0.8282,2628.8,2627.8,21.79956799]
[1748958545557,4.6323309,2628.8,2627.8,19.75556799]
[1748958545795,3.80427941,2628.7,2627.8,24.15568425]
[1748958546018,0.8282,2628.8,2627.8,24.15568425]
[1748958546594,0.8282,2628.8,2627.8,30.97068425]
[1748958547286,0.8282,2628.8,2627.8,31.5396242]
[1748958548899,0.02,2628.9,2627.8,32.13579892]
[1748958549289,0.02,2628.9,2627.8,32.68579892]
[1748958549492,0.02,2628.9,2628.8,11.80401704]
[1748958549800,0.02,2628.9,2628.8,23.8508759]
[1748958550393,0.02,2628.9,2628.8,24.22422382]
[1748958550568,0.02,2628.9,2628.8,23.8508759]
[1748958551307,0.02,2628.9,2628.8,13.77101704]
[1748958551678,0.02,2628.9,2628.8,8.0]
[1748958552204,0.02,2628.9,2628.4,13.69]
[1748958552414,0.02,2628.9,2628.4,17.49451796]
[1748958552708,0.02,2628.9,2628.4,3.80459081]
[1748958553006,0.02,2628.9,2628.1,3.80496202]
[1748958553318,0.47822525,2628.9,2628.2,3.80480571]
[1748958553469,0.8317,2628.6,2627.9,1.967]
[1748958553808,3.80455345,2628.5,2627.8,3.80536426]
[1748958554006,3.80455345,2628.5,2627.3,15.13265427]
[1748958554210,0.7775,2628.4,2627.4,6.13110377]
[1748958554396,1.29070353,2628.4,2627.8,3.80534747]
[1748958554566,4.58217375,2628.4,2627.7,3.80553186]
[1748958554902,4.58217375,2628.4,2627.8,3.80545486]
[1748958555313,0.7775,2628.4,2627.4,1.967]
[1748958555465,3.80463342,2628.4,2627.6,3.80564239]
[1748958555665,4.61247984,2628.3,2627.3,13.688]
[1748958555921,0.8297,2628.1,2627.4,4.16433415]
[1748958556098,0.8297,2628.1,2627.4,3.8059837]
[1748958556308,0.8297,2628.1,2627.5,3.80585354]
[1748958556494,4.6347768,2628.1,2627.4,3.80599377]
[1748958556694,0.8297,2628.1,2627.5,3.80578942]
[1748958556888,5.52482536,2628.1,2627.5,3.80578942]
[1748958557113,1.71976684,2628.1,2627.6,3.80573422]
[1748958557317,0.8297,2628.1,2627.7,3.80553818]
[1748958557514,0.8297,2628.1,2627.3,13.688]
[1748958557820,0.8297,2628.1,2627.4,16.877539]
[1748958558030,0.8303,2628.8,2627.8,8.5190433]
[1748958558320,0.8303,2628.8,2627.9,0.35838686]
[1748958558479,0.8303,2628.8,2628.2,3.80480482]
[1748958558676,0.8303,2628.8,2627.8,14.29147978]
[1748958558881,1.67610225,2628.8,2628.4,3.80457507]
[1748958559280,1.67610225,2628.8,2628.2,3.80476161]
[1748958559480,1.67610225,2628.8,2628.1,3.80495597]
[1748958559680,3.80440395,2628.6,2627.9,3.80522165]
[1748958559917,3.80446572,2628.5,2627.9,3.80522165]
[1748958560117,4.57766175,2628.7,2627.9,3.80522165]
[1748958560318,3.80446638,2628.5,2627.9,3.80522165]
[1748958560620,0.824,2628.3,2627.7,3.80560946]
[1748958560818,0.55,2628.2,2627.0,0.59721012]
[1748958561122,3.80530244,2628.0,2627.3,3.80605549]
[1748958561325,0.84343327,2627.9,2627.4,3.8060301]
[1748958561627,0.84343327,2627.9,2627.5,3.80588619]
[1748958561931,0.824,2628.1,2627.3,3.80618886]
[1748958562234,0.824,2628.1,2627.9,3.80530613]
[1748958562527,0.824,2628.1,2627.9,3.80527375]
[1748958562725,0.824,2628.1,2628.0,3.80517503]
[1748958562883,0.8141,2628.6,2628.1,3.8049898]
[1748958563087,5.84103568,2628.6,2628.0,3.80511433]
[1748958563698,2.0367075,2628.6,2627.6,8.0]
[1748958563899,5.84102581,2628.6,2628.0,3.80509975]
[1748958565002,5.84102581,2628.6,2627.9,3.80531823]
[1748958565227,5.84102581,2628.6,2628.0,3.80510181]
[1748958565730,4.38859103,2628.5,2628.0,3.80516328]
[1748958565891,3.80463183,2628.4,2627.6,8.0]
[1748958566086,4.38867313,2628.5,2627.8,3.80533055]
[1748958566743,4.38856835,2628.5,2627.9,3.80531983]
[1748958566898,3.80459618,2628.4,2627.9,3.80531983]
[1748958567230,1.02297294,2628.4,2627.9,3.80531983]
[1748958567396,1.02297294,2628.4,2628.1,3.80501488]
[1748958567598,2.0367075,2628.6,2628.2,3.80481158]
[1748958567792,5.84101816,2628.6,2627.9,7.95394266]
[1748958568024,2.0367075,2628.6,2627.9,7.95394266]
[1748958568235,3.80451692,2628.5,2628.0,3.80517024]
[1748958568432,3.80451692,2628.5,2627.9,11.75919601]
[1748958568636,0.58412244,2628.4,2627.9,11.75919601]
[1748958568928,0.58412244,2628.4,2627.9,3.8052376]
[1748958569107,0.58412244,2628.4,2627.6,19.75955789]
[1748958569307,5.84107791,2628.6,2628.0,3.80510722]
[1748958569520,5.84107791,2628.6,2627.9,3.80523387]
[1748958569521,3.80445403,2628.5,2627.9,3.80525283]
[1748958570236,3.80445403,2628.5,2627.8,3.80540505]
[1748958570237,3.80480096,2628.3,2627.8,3.80546414]
[1748958570533,3.80464276,2628.4,2627.8,3.80546414]
[1748958571233,3.80449216,2628.5,2627.3,0.59721012]
[1748958571234,0.55,2628.5,2627.3,0.59721012]
[1748958571419,3.80560957,2627.7,2627.1,3.80635117]
[1748958571635,0.83726446,2627.7,2627.2,3.80632281]
[1748958571843,4.64298742,2627.7,2626.9,3.80667339]
[1748958572009,4.64298742,2627.7,2627.1,3.8064123]
[1748958572334,0.8115,2627.6,2627.1,3.80642956]
[1748958572500,0.8115,2627.6,2627.2,3.80632311]
[1748958572899,0.8115,2627.6,2627.0,3.80662352]
[1748958573108,0.8115,2627.6,2627.3,3.80612582]
[1748958573407,0.8115,2627.6,2627.5,3.80589914]
[1748958573755,0.8115,2627.6,2627.4,3.80597252]
[1748958574094,0.8115,2627.6,2627.3,3.80614853]
[1748958574294,0.8115,2627.6,2627.4,3.80600369]
[1748958574532,0.8115,2627.6,2627.2,7.95394266]
[1748958574733,0.8115,2627.6,2627.2,3.80628475]
[1748958575036,0.8115,2627.6,2627.3,3.80608106]
[1748958575716,0.8115,2627.6,2626.9,1.967]
[1748958575932,0.8115,2627.6,2627.1,7.95394266]
[1748958576095,0.8115,2627.6,2627.3,3.80616105]
[1748958576726,0.8115,2627.6,2627.2,3.8062694]
[1748958577146,0.8115,2627.6,2627.1,11.76036846]
[1748958577433,0.8115,2627.6,2627.2,3.80626709]
[1748958577748,1.27320262,2627.6,2627.1,3.80646023]
[1748958577945,0.8115,2627.6,2627.4,3.80597508]
[1748958578129,0.8115,2627.6,2627.1,3.80639437]
[1748958578431,0.8115,2627.6,2627.0,7.95394266]
[1748958578634,0.8115,2627.6,2627.2,3.80627227]
[1748958578814,0.8115,2627.6,2627.1,3.80638797]
[1748958579136,0.8115,2627.6,2627.1,3.80640421]
[1748958579341,3.80597421,2627.5,2627.0,7.95394266]
[1748958579638,3.80626881,2627.3,2626.7,3.80695953]
[1748958580212,3.80640063,2627.2,2626.6,13.73709324]
[1748958580413,0.8042,2627.3,2626.6,8.0]
[1748958580612,3.80633373,2627.2,2626.6,3.80719416]
[1748958580847,0.89667448,2627.2,2626.7,3.8070427]
[1748958581027,3.80648706,2627.1,2626.5,11.76117038]
[1748958581223,4.70308336,2627.2,2626.5,7.95394266]
[1748958581433,4.70308336,2627.2,2626.6,3.80713217]
[1748958581645,1.3065,2627.1,2626.2,0.59721012]
[1748958581966,1.3065,2627.1,2626.1,0.02]
[1748958581967,0.7565,2626.7,2626.1,0.02]
[1748958582247,3.80695196,2626.8,2626.1,0.02]
[1748958582248,4.6087831,2626.2,2626.1,0.02]
[1748958582834,5.1182831,2626.2,2626.1,0.02]
[1748958583854,5.1182831,2626.2,2625.1,0.02]
[1748958583855,0.55,2626.1,2625.1,0.02]
[1748958584012,0.55,2625.9,2625.1,3.82928694]
[1748958584198,0.8073,2625.6,2625.1,3.82928694]
[1748958584727,0.8073,2625.6,2625.2,3.80921406]
[1748958584903,0.8073,2625.6,2625.2,11.76317624]
[1748958585246,0.8073,2625.6,2625.2,12.94140459]
[1748958585736,0.8073,2625.6,2625.2,9.13226028]
[1748958585899,0.8073,2625.6,2625.3,3.80896035]
[1748958586096,0.8073,2625.6,2625.3,3.80900874]
[1748958586348,0.8073,2625.6,2625.4,3.80888091]
[1748958586525,0.7911,2626.0,2625.8,3.80833421]
[1748958586843,0.7911,2626.0,2625.7,3.80841069]
[1748958587142,0.7911,2626.0,2625.8,3.8083485]
[1748958587859,0.7911,2626.0,2625.8,3.80832153]
[1748958588003,0.7911,2626.5,2625.8,8.71561819]
[1748958588203,3.80749578,2626.4,2625.8,3.80828723]
[1748958588546,4.59852351,2626.5,2625.8,3.80828723]
[1748958588843,0.7911,2626.5,2625.8,3.80832845]
[1748958589054,4.59845648,2626.5,2625.9,3.80812016]
[1748958589254,0.7911,2626.5,2625.9,3.80808469]
[1748958589454,0.7911,2626.5,2625.7,7.95394266]
[1748958589662,3.80759292,2626.4,2625.7,11.76233853]
[1748958589956,3.80844045,2625.8,2625.1,0.02]
[1748958590142,0.7672,2626.0,2625.2,3.80920704]
[1748958590143,4.57529915,2626.0,2625.2,3.80920704]
[1748958590347,4.57529915,2626.0,2625.1,3.82936253]
[1748958590545,3.80834503,2625.9,2625.2,3.80921523]
[1748958590734,3.80834503,2625.9,2625.1,3.82931575]
[1748958590936,3.80847971,2625.8,2625.2,3.8092125]
[1748958591143,1.1323545,2625.9,2625.4,3.80891091]
[1748958591456,0.7672,2626.0,2625.2,11.76308207]
[1748958591754,3.80829435,2625.9,2625.3,3.80904992]
[1748958591959,0.7672,2626.0,2625.2,7.95394266]
[1748958592132,0.7672,2626.0,2625.3,3.80897231]
[1748958592463,0.7672,2626.0,2625.1,7.97394266]
[1748958592464,3.80836939,2625.8,2625.1,7.97394266]
[1748958592626,4.18945039,2625.7,2625.1,3.82935794]
[1748958592824,3.80866323,2625.6,2625.1,0.02]
[1748958593136,0.7965,2625.5,2625.1,0.02]
[1748958593454,3.80920147,2625.3,2625.1,0.02]
[1748958593654,3.8090048,2625.4,2625.1,0.02]
[1748958594021,0.7965,2625.5,2625.1,0.02]
[1748958594337,5.11503358,2625.2,2625.1,0.02]
[1748958594534,6.00744579,2625.2,2625.1,0.02]
[1748958594956,5.45744579,2625.2,2625.1,0.02]
[1748958595259,12.75544579,2625.2,2625.1,0.02]
[1748958596659,1.64821221,2625.2,2625.1,0.02]
[1748958596837,0.7558,2625.2,2625.1,0.02]
[1748958597359,4.56503358,2625.2,2625.1,0.02]
[1748958597729,0.7558,2625.2,2625.1,0.02]
[1748958597938,4.56503358,2625.2,2625.1,0.02]
[1748958598834,5.11503358,2625.2,2625.1,0.02]
[1748958599034,7.48234815,2625.2,2625.1,0.02]
[1748958599236,3.12311457,2625.2,2625.1,0.02]
[1748958599561,0.7558,2625.2,2625.1,0.02]
[1748958600319,8.45,2625.5,2625.1,0.02]
[1748958600320,8.6694,2625.5,2625.1,0.02]
[1748958600524,3.80909243,2625.3,2625.1,0.02]
[1748958600924,3.80923358,2625.2,2625.1,0.02]
[1748958601741,5.12863358,2625.2,2625.1,0.02]
[1748958601956,6.02240832,2625.2,2625.1,0.02]
[1748958602261,1.66317474,2625.2,2625.1,0.02]
[1748958602866,6.02240832,2625.2,2625.1,0.02]
[1748958603372,14.02240832,2625.2,2625.1,0.02]
[1748958603536,3.81068516,2624.2,2624.1,0.02]
[1748958603737,4.27064368,2624.2,2624.1,0.02]
[1748958604329,4.82064368,2624.2,2624.1,0.02]
[1748958604559,5.61614368,2624.2,2624.1,0.02]
[1748958606169,0.8105,2623.4,2623.1,0.02]
[1748958606935,3.81213784,2623.2,2623.1,0.02]
[1748958607571,4.82440162,2623.2,2623.1,0.02]
[1748958607963,5.61000162,2623.2,2623.1,0.02]
[1748958608164,13.61000162,2623.2,2623.1,0.02]
[1748958609048,0.8275,2622.6,2622.1,0.02]
[1748958609296,0.8275,2622.6,2622.1,3.83366811]
[1748958609964,0.8275,2622.6,2622.2,3.81350155]
[1748958610178,0.55,2622.5,2622.1,0.02]
[1748958610495,3.81341329,2622.4,2622.1,0.02]
[1748958610794,0.43634133,2622.3,2622.1,0.02]
[1748958610996,0.55,2622.5,2622.1,0.02]
[1748958611164,4.36317035,2622.5,2622.1,0.02]
[1748958611359,0.55,2622.5,2622.1,0.02]
[1748958611553,0.8275,2622.6,2622.1,0.02]
[1748958611753,0.8275,2622.6,2622.2,3.81351369]
[1748958611954,0.8275,2622.6,2622.2,3.81352123]
[1748958612253,0.8275,2622.6,2622.2,3.81359164]
[1748958612679,1.29152443,2622.6,2622.1,0.02]
[1748958612886,4.36324904,2622.5,2622.1,0.02]
[1748958613065,0.55,2622.5,2622.1,0.02]
[1748958613569,6.751,2622.8,2622.3,3.81337269]
[1748958613760,0.7877,2622.9,2622.1,0.1]
[1748958613761,0.55,2622.7,2622.1,0.1]
[1748958614106,0.7877,2623.3,2623.1,3.81220334]
[1748958614307,1.931,2623.8,2622.3,8.56019091]
[1748958614465,2.4096,2623.7,2623.2,3.81202832]
[1748958614659,2.4096,2623.7,2623.3,3.81187811]
[1748958614899,0.7513,2623.7,2623.3,3.81187811]
[1748958615201,0.7513,2623.7,2622.7,8.56019091]
[1748958615202,0.7513,2623.7,2622.7,10.49119091]
[1748958615408,0.7513,2623.7,2623.2,3.81202944]
[1748958615596,0.7513,2623.7,2623.1,3.81228015]
[1748958615782,0.7513,2623.7,2622.9,3.81257386]
[1748958616122,1.931,2623.9,2623.0,0.38125739]
[1748958616412,0.31887307,2623.8,2623.5,3.81169312]
[1748958616577,0.31887307,2623.8,2623.5,3.81157381]
[1748958617088,0.31887307,2623.8,2623.6,3.81147984]
[1748958617294,0.31887307,2623.8,2623.2,0.08]
[1748958617513,0.31887307,2623.8,2623.0,4.19361072]
[1748958617704,3.81166796,2623.6,2623.0,4.19361072]
[1748958617917,0.7721,2623.5,2623.1,3.81216506]
[1748958618218,0.31798354,2623.4,2622.8,8.0]
[1748958618389,0.31798354,2623.4,2623.3,3.81199252]
[1748958618591,0.31798354,2623.4,2622.9,3.81257386]
[1748958618806,0.31798354,2623.4,2622.7,11.8128646]
[1748958619022,0.31798354,2623.4,2623.1,3.81215082]
[1748958619202,0.31798354,2623.4,2623.2,3.8121027]
[1748958619416,0.31798354,2623.4,2622.6,0.08]
[1748958619627,0.8016,2623.1,2622.5,3.81304811]
[1748958619834,0.8016,2623.1,2622.3,0.08]
[1748958620116,3.81287174,2622.7,2622.1,3.83365606]
[1748958620484,0.55,2622.6,2622.1,0.02]
[1748958620824,0.8231,2622.4,2622.1,0.02]
[1748958621118,4.63640114,2622.4,2622.1,0.02]
[1748958621329,0.8231,2622.4,2622.1,0.02]
[1748958621982,0.55,2622.3,2622.1,0.02]
[1748958622178,4.36354708,2622.3,2622.1,0.02]
[1748958622526,4.33232091,2622.2,2621.5,3.81460012]
[1748958622680,4.33232091,2622.2,2621.3,0.041019]
[1748958622681,0.51866471,2622.2,2621.3,0.041019]
[1748958622893,0.51866471,2622.2,2621.7,3.81418655]
[1748958623328,3.81376075,2622.1,2621.5,3.8145458]
[1748958623540,0.51866471,2622.2,2621.4,3.81472551]
[1748958623541,3.81396355,2622.0,2621.4,3.81472551]
[1748958623737,4.24719456,2622.0,2621.4,3.81473805]
[1748958623944,3.81406768,2621.9,2621.3,3.81485166]
[1748958624441,0.43324255,2622.0,2621.3,3.81485166]
[1748958624736,0.43324255,2622.0,2621.1,0.02]
[1748958624948,0.55,2622.1,2621.4,3.81468129]
[1748958625098,0.55,2621.9,2621.5,3.81457995]
[1748958625295,0.7614,2622.0,2621.8,3.81409468]
[1748958625844,0.7614,2622.0,2621.2,3.85613309]
[1748958626009,0.8183,2622.4,2621.5,3.81458476]
[1748958626210,0.8183,2622.4,2620.9,19.46043046]
[1748958626211,0.37225042,2622.4,2620.6,0.00850801]
[1748958626420,3.81795968,2619.2,2617.8,0.3792244]
[1748958626617,12.19975565,2619.2,2618.3,0.19888677]
[1748958626803,8.76121091,2619.2,2618.3,0.19888677]
[1748958626997,8.38179597,2619.2,2618.0,3.81960132]
[1748958627198,8.38179597,2619.2,2618.2,3.81940749]
[1748958627399,8.38179597,2619.2,2617.9,6.96]
[1748958627639,8.38179597,2619.2,2617.3,8.56019091]
[1748958627640,11.81795968,2619.2,2617.3,8.56019091]